bitfinex/quotes_ETHUSD_20250622
["timestamp","ask_amount","ask_price","bid_price","bid_amount"]
[1750563712272,0.8318,2263.7,2263.3,2.015]
[1750563712478,0.8318,2263.7,2263.4,2.65077662]
[1750563712680,1.68325488,2263.7,2263.3,4.66592498]
[1750563712972,1.68325488,2263.7,2263.4,2.65086313]
[1750563713170,1.68325488,2263.7,2263.4,2.6508289]
[1750563713377,10.0,2263.6,2263.3,2.015]
[1750563713552,0.7926,2263.4,2263.0,2.65127674]
[1750563713747,10.0,2263.3,2262.9,4.66638766]
[1750563714181,10.7926,2263.1,2262.5,2.015]
[1750563714376,7.451,2263.0,2262.7,2.6516379]
[1750563714782,7.451,2263.0,2262.5,2.015]
[1750563714783,10.0,2262.9,2262.5,2.65181793]
[1750563714983,10.23078344,2262.9,2262.6,2.65181537]
[1750563715191,0.7926,2262.8,2262.5,2.65193197]
[1750563715355,17.451,2262.7,2262.6,2.65181649]
[1750563715686,17.451,2262.7,2262.5,2.65187795]
[1750563715889,10.0,2262.7,2262.4,4.66799416]
[1750563716187,7.451,2262.6,2262.4,4.66799416]
[1750563716555,7.45,2262.5,2262.4,4.66799416]
[1750563719091,0.23078344,2262.9,2262.6,3.45211649]
[1750563719290,0.23078344,2262.9,2262.8,2.65158211]
[1750563719790,0.23078344,2262.9,2262.6,2.65180802]
[1750563719992,1.03188344,2262.9,2262.8,2.65158211]
[1750563720289,1.03188344,2262.9,2262.7,2.65158948]
[1750563720458,10.0,2262.7,2262.6,4.65972702]
[1750563722995,0.55,2262.7,2262.6,2.008]
[1750563723164,0.8011,2262.6,2262.3,2.65211276]
[1750563723363,7.449,2262.5,2262.2,12.618]
[1750563723560,17.449,2262.5,2262.4,2.65205091]
[1750563725493,10.0,2262.4,2262.2,15.27023202]
[1750563725673,6.449,2262.5,2262.2,15.27023202]
[1750563725871,10.55,2262.4,2262.0,2.65244343]
[1750563726074,10.55,2262.4,2261.6,0.0462273]
[1750563726075,0.55,2262.2,2261.6,0.0462273]
[1750563726272,10.0,2262.0,2261.9,2.65256676]
[1750563726488,7.449,2262.0,2261.9,2.65256676]
[1750563726685,7.449,2262.0,2261.6,0.0462273]
[1750563726992,10.0,2261.9,2261.7,2.65284257]
[1750563727367,10.0,2261.9,2261.8,2.65275444]
[1750563727992,17.449,2262.2,2262.1,2.65232063]
[1750563728171,10.0,2262.2,2262.1,2.65232063]
[1750563730002,0.55,2262.1,2261.9,2.6526032]
[1750563730206,0.7534,2261.8,2261.6,0.0462273]
[1750563730397,17.999,2261.7,2261.6,0.0462273]
[1750563730621,20.13952121,2261.7,2261.6,0.0462273]
[1750563730964,22.79239294,2261.7,2261.6,0.0462273]
[1750563731164,20.89692121,2261.7,2261.6,0.0462273]
[1750563731392,36.79781099,2261.7,2261.6,0.0462273]
[1750563731785,36.79781099,2261.7,2260.9,2.65373169]
[1750563731786,11.3074,2261.4,2260.9,2.65373169]
[1750563731987,0.7574,2261.1,2260.7,2.6540452]
[1750563732218,10.0,2260.9,2260.8,2.65392781]
[1750563732787,10.0,2260.9,2260.7,2.65403424]
[1750563732990,17.448,2260.8,2260.6,2.65411595]
[1750563733213,10.0,2260.7,2260.5,2.009]
[1750563733428,0.55,2261.0,2260.5,2.009]
[1750563733429,17.448,2260.6,2260.5,2.009]
[1750563734510,17.448,2260.6,2260.5,4.66328002]
[1750563734712,17.448,2260.6,2260.0,3.42514207]
[1750563734713,10.55,2260.5,2259.9,2.65496958]
[1750563734887,10.55,2260.5,2259.8,10.618]
[1750563734888,10.0,2260.3,2260.2,2.65457038]
[1750563735513,10.0,2260.3,2260.2,2.65463233]
[1750563736212,10.0,2260.3,2260.0,4.66384582]
[1750563736382,17.45,2260.2,2260.1,2.65466631]
[1750563736579,17.45,2260.2,2260.1,3.38651752]
[1750563737387,0.44825724,2260.7,2260.6,2.65416261]
[1750563737597,0.44825724,2260.7,2259.9,0.7563]
[1750563737598,10.0,2260.6,2259.9,0.7563]
[1750563737922,10.55,2260.4,2260.0,2.65486725]
[1750563738216,10.0,2260.2,2259.9,4.66392514]
[1750563738428,10.0,2260.0,2259.9,2.009]
[1750563738719,10.7629,2260.7,2260.3,2.65447211]
[1750563738923,0.55,2260.4,2260.3,2.65447211]
[1750563739126,18.001,2260.4,2260.3,2.65447211]
[1750563740309,10.0,2260.4,2260.3,2.65447211]
[1750563740521,17.451,2260.4,2260.3,2.65447211]
[1750563740694,17.90144777,2260.4,2260.3,2.65447211]
[1750563740894,10.45144777,2260.4,2260.3,2.65447211]
[1750563741226,17.90144777,2260.4,2260.3,2.65447211]
[1750563741414,18.45144777,2260.4,2260.3,2.65447211]
[1750563742323,10.0,2260.3,2259.9,2.009]
[1750563742510,17.451,2260.2,2260.1,2.65474978]
[1750563743602,10.0,2260.2,2260.1,2.65474978]
[1750563745347,10.0,2260.2,2260.1,3.45274978]
[1750563745550,0.43989035,2260.8,2260.7,2.6540452]
[1750563745731,17.45,2260.8,2260.7,2.6540452]
[1750563745936,17.68083773,2260.8,2260.7,2.6540452]
[1750563747467,0.23083773,2260.8,2260.7,3.4845452]
[1750563747787,10.23083773,2260.8,2260.7,2.6540452]
[1750563748675,12.04361854,2260.8,2260.4,2.8405]
[1750563748878,0.23083773,2260.8,2260.7,2.6540452]
[1750563749175,7.68083773,2260.8,2260.6,2.65409689]
[1750563749475,7.68083773,2260.8,2260.7,2.6540452]
[1750563750045,0.23083773,2260.8,2260.7,3.4845452]
[1750563752277,8.72811988,2261.2,2261.1,2.65357569]
[1750563752453,1.50893441,2261.2,2261.1,2.65357569]
[1750563752865,1.27811988,2261.2,2261.1,2.65357569]
[1750563753254,1.50894099,2261.2,2261.1,2.65357569]
[1750563753867,1.50894099,2261.2,2260.9,2.005]
[1750563754185,10.0,2261.1,2261.0,2.65369305]
[1750563756478,8.95794099,2261.2,2261.1,2.65357569]
[1750563756676,1.50894099,2261.2,2261.1,3.43167569]
[1750563756886,1.27811988,2261.2,2261.1,3.43167569]
[1750563759389,1.27811988,2261.2,2261.1,8.09167569]
[1750563759587,0.7796,2262.0,2261.7,3.43097173]
[1750563759588,0.23080245,2261.8,2261.7,3.43097173]
[1750563759770,0.23080245,2261.8,2261.7,5.43597173]
[1750563760280,0.23080245,2261.8,2261.7,4.65787173]
[1750563761286,10.0,2261.8,2261.7,4.65787173]
[1750563761648,10.0,2262.9,2262.6,2.6518108]
[1750563761883,4.0,2262.7,2262.6,2.6518108]
[1750563762179,14.0,2262.7,2262.6,2.6518108]
[1750563762380,21.67774169,2262.7,2262.6,2.6518108]
[1750563762595,11.67774169,2262.7,2262.6,2.6518108]
[1750563763080,7.67774169,2262.7,2262.6,2.6518108]
[1750563763393,0.23074169,2262.7,2262.6,2.6518108]
[1750563764757,10.23074169,2262.7,2262.6,2.6518108]
[1750563764957,0.23074169,2262.7,2262.6,2.6518108]
[1750563765187,1.18358749,2263.2,2263.1,2.65123061]
[1750563765379,0.8312,2263.4,2263.2,2.65104581]
[1750563765578,17.445,2263.3,2263.2,2.65104581]
[1750563765952,1.06188455,2263.4,2263.3,2.65099633]
[1750563766153,8.50588455,2263.4,2263.3,2.65099633]
[1750563766456,7.67468455,2263.4,2263.3,2.65099633]
[1750563766784,8.59178789,2263.4,2263.2,2.65104581]
[1750563767350,8.22468455,2263.4,2263.3,2.65099633]
[1750563767553,7.67468455,2263.4,2263.3,2.65099633]
[1750563767949,10.0,2263.3,2263.2,2.65108305]
[1750563772676,0.55,2263.2,2262.9,2.65139329]
[1750563772876,10.0,2263.0,2262.9,2.65139329]
[1750563773093,10.0,2263.0,2262.6,0.8261]
[1750563773290,0.55,2262.9,2262.5,2.65187434]
[1750563773488,0.55,2262.6,2262.3,2.65211154]
[1750563773726,10.0,2262.4,2262.3,2.65211154]
[1750563775006,0.55,2262.3,2261.8,2.65275444]
[1750563775186,0.55,2262.3,2262.0,2.65249974]
[1750563775187,7.441,2262.2,2262.0,2.65249974]
[1750563776214,7.441,2262.2,2261.7,0.8188]
[1750563776215,1.3042,2262.1,2261.9,2.6526005]
[1750563776414,1.3042,2262.1,2261.8,2.65269678]
[1750563776777,1.3042,2262.1,2261.8,2.65275444]
[1750563776980,1.3042,2262.1,2261.9,2.65263716]
[1750563777804,12.22334908,2262.1,2261.3,3.47204676]
[1750563778084,12.22334908,2262.1,2261.8,2.65273034]
[1750563779093,12.22334908,2262.1,2261.5,0.04421308]
[1750563779094,11.3042,2262.1,2261.9,2.6525722]
[1750563779307,10.0,2262.1,2261.5,0.7612]
[1750563779579,10.0,2261.9,2261.7,2.65287173]
[1750563779807,10.0,2261.9,2261.8,2.65275444]
[1750563781189,10.23073321,2261.9,2261.8,2.65275444]
[1750563782696,10.23073321,2261.9,2261.7,2.65279959]
[1750563782933,17.44,2261.8,2261.7,2.65279959]
[1750563784988,10.0,2261.8,2261.7,2.65279959]
[1750563785189,17.44,2261.8,2261.7,2.65279959]
[1750563785624,10.0,2261.7,2261.5,2.001]
[1750563785893,10.0,2261.7,2261.6,2.65298859]
[1750563788534,10.0,2261.7,2261.5,4.65405439]
[1750563788854,10.0,2261.7,2261.6,2.65298903]
[1750563789757,10.0,2261.7,2261.5,4.65403993]
[1750563789969,17.44,2261.6,2261.5,4.65403993]
[1750563791045,17.44,2261.6,2261.5,5.46075161]
[1750563791251,0.23073321,2261.9,2261.8,2.65275444]
[1750563791576,10.62,2263.0,2261.8,2.65275444]
[1750563791577,7.439,2262.5,2262.1,2.65232795]
[1750563791953,10.0,2262.4,2262.1,2.65232795]
[1750563792262,7.439,2262.3,2262.2,2.65228538]
[1750563792565,17.439,2262.3,2262.2,2.65228538]
[1750563792966,7.439,2262.3,2262.2,2.65228538]
[1750563795025,0.2306953,2262.4,2262.3,2.65216814]
[1750563795337,0.2306953,2262.4,2262.3,3.51287104]
[1750563796063,0.2306953,2262.4,2262.3,2.69636404]
[1750563796279,0.2306953,2262.4,2262.3,2.65216814]
[1750563796459,0.2306953,2262.4,2262.3,2.69636404]
[1750563796658,0.2306953,2262.4,2262.3,3.51651995]
[1750563797879,0.2306953,2262.4,2262.3,3.56071645]
[1750563798790,0.2306953,2262.4,2262.3,4.32411645]
[1750563798949,7.437,2262.9,2262.4,0.7634]
[1750563799150,10.2306487,2262.9,2262.8,2.65149743]
[1750563799379,0.2306487,2262.9,2262.8,2.65149743]
[1750563799590,7.6676487,2262.9,2262.8,2.65149743]
[1750563800088,8.4475487,2262.9,2262.6,2.65173064]
[1750563800245,8.4475487,2262.9,2262.7,2.65169153]
[1750563800586,9.29230357,2262.9,2262.8,2.65158211]
[1750563800753,18.4475487,2262.9,2262.8,2.65158211]
[1750563801732,10.2306487,2262.9,2262.8,2.65158211]
[1750563801891,10.2306487,2262.9,2262.8,3.41498211]
[1750563801892,0.2306487,2262.9,2262.8,3.41498211]
[1750563802524,17.436,2263.2,2262.5,4.66]
[1750563802735,10.55,2263.1,2262.9,2.65145696]
[1750563802876,0.23066092,2263.0,2262.9,2.65145696]
[1750563803076,0.23066092,2263.0,2262.6,2.65179025]
[1750563803326,0.7799,2262.9,2262.8,2.65158211]
[1750563803488,8.2159,2262.9,2262.7,2.65165216]
[1750563804623,0.23066092,2263.0,2262.7,2.65165216]
[1750563804964,0.23066092,2263.0,2262.9,2.65146493]
[1750563805072,17.66666092,2263.0,2262.9,2.65146493]
[1750563805279,10.23066092,2263.0,2262.9,2.65146493]
[1750563809232,0.23066092,2263.0,2262.9,2.65146493]
[1750563813826,0.3441063,2263.0,2262.9,2.69564974]
[1750563814028,0.3441063,2263.0,2262.9,3.57952782]
[1750563815917,0.3441063,2263.0,2262.9,3.53534301]
[1750563816653,0.3441063,2263.0,2262.9,2.65146493]
[1750563817134,7.7771063,2263.0,2262.9,2.65146493]
[1750563818138,7.7771063,2263.0,2262.7,1.997]
[1750563818139,10.8232,2262.9,2262.6,2.65175658]
[1750563819854,10.8232,2262.9,2262.3,4.64907627]
[1750563819855,10.8232,2262.7,2262.3,4.64907627]
[1750563820166,8.2562,2262.7,2262.4,2.65204982]
[1750563820372,18.2562,2262.7,2262.3,1.997]
[1750563820535,0.23073545,2262.6,2262.3,4.64911616]
[1750563820861,10.23073545,2262.6,2262.3,4.64911616]
[1750563821063,0.55,2262.5,2261.7,2.65275771]
[1750563821266,8.1904,2262.4,2262.2,2.65222092]
[1750563821467,8.1904,2262.4,2261.4,1.997]
[1750563821468,0.55,2262.1,2261.4,1.997]
[1750563821672,0.55,2261.8,2261.4,1.60188537]
[1750563821840,7.433,2261.7,2261.4,2.65312104]
[1750563822171,7.433,2261.7,2261.4,2.65322366]
[1750563822532,7.433,2261.7,2261.5,2.65304753]
[1750563823166,7.433,2261.7,2261.4,2.65316815]
[1750563823371,7.433,2261.7,2261.5,2.6530851]
[1750563825670,7.433,2261.7,2261.6,2.65298903]
[1750563826263,1.1994058,2261.9,2261.6,0.53062057]
[1750563826264,0.7574,2261.9,2261.6,0.53062057]
[1750563826556,10.7574,2261.9,2261.8,2.65275444]
[1750563827137,10.7574,2261.9,2261.7,2.65280308]
[1750563828210,0.55,2261.8,2261.5,2.65306084]
[1750563828363,7.434,2261.7,2261.6,2.65297068]
[1750563829607,7.434,2261.7,2261.5,2.65305617]
[1750563830107,7.434,2261.7,2261.2,1.997]
[1750563830410,7.434,2261.7,2261.6,2.65298903]
[1750563830577,7.434,2261.7,2261.5,2.65305424]
[1750563831506,7.434,2261.7,2260.9,2.65380121]
[1750563831507,10.0,2261.6,2261.3,2.65333687]
[1750563831662,10.0,2261.6,2261.4,2.65320346]
[1750563832005,11.82048773,2261.6,2261.4,2.65320346]
[1750563833784,10.0,2261.6,2261.5,2.65310634]
[1750563833989,10.0,2261.6,2261.4,2.65313675]
[1750563834373,10.0,2261.6,2261.3,2.65324101]
[1750563834582,0.7768,2261.5,2261.3,2.65330188]
[1750563834781,7.984,2261.4,2261.3,2.65330188]
[1750563835893,8.21479356,2261.4,2261.3,2.65330188]
[1750563836492,10.11395292,2261.4,2261.3,2.65330188]
[1750563836890,10.11395292,2261.4,2261.2,2.65339457]
[1750563837091,10.11395292,2261.4,2261.3,2.65334099]
[1750563837903,10.11395292,2261.4,2260.8,5.42972842]
[1750563838103,11.3036,2261.3,2260.9,2.65374597]
[1750563838402,10.55,2261.1,2260.8,4.64889229]
[1750563838606,0.7536,2260.9,2260.8,1.995]
[1750563839193,0.7536,2260.9,2260.8,4.64892781]
[1750563839392,1.3036,2261.2,2260.8,1.995]
[1750563839594,7.983,2261.1,2261.0,2.65369305]
[1750563839919,17.983,2261.1,2261.0,2.65369305]
[1750563840070,17.433,2261.1,2261.0,2.65369305]
[1750563840524,19.25166,2261.1,2261.0,2.65369305]
[1750563841446,10.0,2261.0,2260.9,2.6537324]
[1750563841565,9.80166,2261.1,2261.0,2.65369305]
[1750563841770,17.433,2261.1,2261.0,2.65369305]
[1750563843167,10.0,2261.1,2261.0,2.65369305]
[1750563843372,1.56549356,2261.4,2261.3,2.65334099]
[1750563843686,18.99849356,2261.4,2261.3,2.65334099]
[1750563844008,0.55,2261.3,2260.8,2.819]
[1750563844205,17.433,2261.2,2261.1,2.65350332]
[1750563845170,10.0,2261.2,2261.1,2.65350332]
[1750563845369,10.0,2261.1,2260.8,1.995]
[1750563845600,17.433,2261.2,2261.0,2.65369305]
[1750563845601,7.433,2261.2,2261.0,2.65369305]
[1750563846204,10.0,2261.1,2260.9,2.65375026]
[1750563846414,7.433,2261.0,2260.9,2.65375026]
[1750563846628,8.1855,2261.0,2260.9,2.65375026]
[1750563847624,1.3025,2261.2,2261.1,2.65357569]
[1750563847793,17.433,2261.2,2261.1,2.65357569]
[1750563849027,10.0,2261.2,2261.1,2.65357569]
[1750563849213,17.432,2261.2,2261.1,2.65357569]
[1750563849725,10.0,2261.2,2261.1,2.65357569]
[1750563850028,17.432,2261.2,2261.1,2.65357569]
[1750563852220,17.432,2261.2,2261.0,2.65362876]
[1750563852221,7.432,2261.2,2261.0,2.65362876]
[1750563852423,10.0,2261.1,2261.0,2.65362876]
[1750563853230,10.23081072,2261.1,2261.0,2.65362876]
[1750563853428,17.66281072,2261.1,2261.0,2.65362876]
[1750563854138,17.66181072,2261.1,2261.0,2.65362876]
[1750563855732,0.23081072,2261.1,2261.0,5.46372876]
[1750563855912,0.23081072,2261.1,2261.0,6.27990494]
[1750563856249,0.23081072,2261.1,2261.0,6.32412734]
[1750563858423,0.7632,2261.8,2261.6,2.6529268]
[1750563858636,0.7632,2261.8,2261.6,2.65298903]
[1750563858637,7.43,2261.7,2261.6,2.65298903]
[1750563858821,10.4446795,2261.9,2261.8,2.65275444]
[1750563859146,19.91913935,2261.9,2261.8,2.65275444]
[1750563859348,0.55,2261.8,2261.7,2.65282343]
[1750563862371,0.23076232,2261.9,2261.8,2.65275444]
[1750563862725,7.65976232,2261.9,2261.8,2.65275444]
[1750563863123,0.23076232,2261.9,2261.8,2.65275444]
[1750563863329,0.23076232,2261.9,2261.8,3.18331223]
[1750563863855,0.23076232,2261.9,2261.8,3.99201223]
[1750563866182,0.23076232,2261.9,2261.8,4.03621708]
[1750563866334,7.428,2262.4,2262.3,2.65216814]
[1750563866873,7.65769032,2262.4,2262.3,2.65216814]
[1750563867248,7.65769032,2262.4,2262.0,2.65249024]
[1750563867667,9.50142935,2262.4,2262.2,2.65222098]
[1750563868432,9.50142935,2262.4,2262.3,2.65216814]
[1750563868433,0.23069032,2262.4,2262.3,2.65216814]
[1750563870438,0.23069032,2262.4,2262.3,3.49156458]
[1750563870643,0.11344538,2263.0,2262.9,2.65146493]
[1750563871148,0.34406167,2263.0,2262.9,2.65146493]
[1750563881186,0.34406167,2263.0,2262.9,3.41226493]
[1750563881389,0.34406167,2263.0,2262.9,4.21774903]
[1750563882128,0.11344538,2263.0,2262.9,18.87774903]
[1750563883417,0.11344538,2263.0,2262.9,8.87774903]
[1750563884302,0.11344538,2263.0,2262.9,18.87774903]
[1750563884819,0.11344538,2263.0,2262.9,19.42774903]
[1750563885836,0.16569901,2263.9,2263.8,2.65041081]
[1750563886037,0.21795264,2264.8,2263.8,2.65041081]
[1750563886038,0.21795264,2264.8,2264.7,2.64935753]
[1750563886189,0.21795264,2264.8,2264.7,5.43780975]
[1750563886914,0.21795264,2264.8,2264.7,5.87417643]
[1750563887115,0.21795264,2264.8,2264.7,4.21983371]
[1750563887301,0.21795264,2264.8,2264.7,6.20983371]
[1750563887510,0.21795264,2264.8,2264.7,4.63935753]
[1750563887834,0.21795264,2264.8,2264.7,5.43780874]
[1750563888186,0.21795264,2264.8,2264.7,5.39365753]
[1750563888518,0.21795264,2264.8,2264.7,5.43779854]
[1750563888881,0.21795264,2264.8,2264.7,29.23264463]
[1750563889085,0.21795264,2264.8,2264.7,38.2261639]
[1750563890705,0.21795264,2264.8,2264.7,38.2241639]
[1750563891315,0.27020626,2265.6,2265.5,0.7619]
[1750563891494,0.27020626,2265.6,2265.5,23.46844872]
[1750563891702,0.27020626,2265.6,2265.5,23.42432198]
[1750563891908,0.27020626,2265.6,2265.5,24.30746728]
[1750563893210,0.27020626,2265.6,2265.5,34.30746728]
[1750563895052,0.27020626,2265.6,2265.5,34.85746728]
[1750563896845,0.27020626,2265.6,2265.5,24.90346728]
[1750563897025,0.27020626,2265.6,2265.5,34.30146728]
[1750563897728,0.27020626,2265.6,2265.5,16.12556728]
[1750563900524,0.27020626,2265.6,2265.5,13.25842198]
[1750563900722,0.27020626,2265.6,2265.5,2.64842198]
[1750563901163,0.27020626,2265.6,2265.4,4.63253457]
[1750563901361,0.27020626,2265.6,2265.5,2.64842198]
[1750563901683,1.08260626,2265.6,2265.5,2.64842198]
[1750563902184,1.31307498,2265.6,2265.5,2.64842198]
[1750563902588,1.31307498,2265.6,2264.8,2.64924055]
[1750563902589,0.8124,2265.5,2264.8,2.64924055]
[1750563902758,0.8124,2265.5,2265.3,2.64863514]
[1750563902954,0.8124,2265.5,2265.4,2.64853888]
[1750563904161,0.50067498,2265.6,2265.4,2.64853888]
[1750563904162,0.27020626,2265.6,2265.5,2.64842198]
[1750563906998,0.27020626,2265.6,2265.5,2.69255037]
[1750563907197,0.27020626,2265.6,2265.5,3.22665929]
[1750563907701,0.27020626,2265.6,2265.5,10.63165929]
[1750563907914,0.27020626,2265.6,2265.5,11.3721309]
[1750563909287,0.27020626,2265.6,2265.5,3.9671309]
[1750563909601,0.27020626,2265.6,2265.5,13.40025752]
[1750563909910,0.27020626,2265.6,2265.5,13.3561309]
[1750563911807,0.27020626,2265.6,2265.5,3.9671309]
[1750563912111,0.27020626,2265.6,2265.5,13.3551309]
[1750563912613,0.27020626,2265.6,2265.5,12.5705309]
[1750563913608,0.27020626,2265.6,2265.5,13.3551309]
[1750563916030,0.27020626,2265.6,2265.5,37.14997699]
[1750563916199,0.27020626,2265.6,2265.5,37.14797699]
[1750563916399,0.27020626,2265.6,2265.5,23.9031309]
[1750563917198,0.27020626,2265.6,2265.5,23.3531309]
[1750563921612,0.27020626,2265.6,2265.5,23.9031309]
[1750563922041,0.27020626,2265.6,2265.5,37.14797699]
[1750563923599,0.27020626,2265.6,2265.5,41.80797699]
[1750563924740,1e-08,2265.6,2265.5,42.37669562]
[1750563925504,1e-08,2265.6,2265.5,42.37369562]
[1750563925735,1e-08,2265.6,2265.5,32.42197699]
[1750563925953,1e-08,2265.6,2265.5,41.80397699]
[1750563926864,1e-08,2265.6,2265.5,42.37269562]
[1750563930163,0.32245989,2266.5,2266.4,3.45377027]
[1750563930361,0.32245989,2266.5,2266.4,24.04005009]
[1750563930564,0.32245989,2266.5,2266.4,34.54594287]
[1750563931576,0.32245989,2266.5,2266.4,25.16794287]
[1750563931774,0.32245989,2266.5,2266.4,34.54494287]
[1750563932860,0.32245989,2266.5,2266.4,47.78978896]
[1750563934379,0.32245989,2266.5,2266.4,24.61794287]
[1750563934587,0.32245989,2266.5,2266.4,13.81154287]
[1750563934742,1.13165989,2266.5,2266.4,22.62037027]
[1750563935279,1.13165989,2266.5,2266.4,32.62037027]
[1750563935650,1.13165989,2266.5,2266.4,22.62037027]
[1750563937854,1.13165989,2266.5,2266.4,15.22437027]
[1750563941160,1.13165989,2266.5,2266.4,17.01155359]
[1750563941382,1.13165989,2266.5,2266.4,24.40655359]
[1750563942352,1.13165989,2266.5,2266.4,15.22437027]
[1750563945884,0.32245989,2266.5,2266.4,15.22437027]
[1750563946587,0.32245989,2266.5,2266.4,15.98537027]
[1750563946792,0.32245989,2266.5,2266.4,16.53537027]
[1750563946991,0.32245989,2266.5,2266.4,17.1040889]
[1750563950523,0.32245989,2266.5,2266.4,23.37837027]
[1750563951007,0.32245989,2266.5,2266.4,23.92837027]
[1750563951885,0.32245989,2266.5,2266.4,24.4970889]
[1750563952086,0.32245989,2266.5,2266.4,23.92837027]
[1750563954167,0.32245989,2266.5,2266.4,23.37637027]
[1750563954768,0.32245989,2266.5,2266.4,22.61537027]
[1750563955269,0.32245989,2266.5,2266.4,13.24437027]
[1750563955505,0.32245989,2266.5,2266.4,22.61537027]
[1750563958304,0.32245989,2266.5,2266.4,13.24437027]
[1750563958613,0.32245989,2266.5,2266.4,22.61037027]
[1750563960988,0.32245989,2266.5,2266.4,23.1790889]
[1750563961907,0.32245989,2266.5,2266.4,22.61037027]
[1750563964719,0.32245989,2266.5,2266.4,27.27037027]
[1750563967719,0.32245989,2266.5,2266.4,27.82037027]
[1750563968017,0.32245989,2266.5,2266.4,27.27037027]
[1750563969819,1.12315989,2266.5,2266.4,15.22037027]
[1750563970650,1.12315989,2266.5,2266.4,1.976]
[1750563970855,1.12315989,2266.5,2266.4,4.62337027]
[1750563972857,1.12315989,2266.5,2266.4,4.66749098]
[1750563973036,1.12315989,2266.5,2266.4,6.13758756]
[1750563973735,1.12315989,2266.5,2266.4,2.64737027]
[1750563975353,1.12315989,2266.5,2266.3,2.64742705]
[1750563975552,0.7507,2266.4,2266.3,2.64742705]
[1750563977025,0.7507,2266.4,2266.2,4.62355646]
[1750563977343,0.7507,2266.4,2266.3,2.64748709]
[1750563979052,0.7507,2266.4,2266.2,2.64756801]
[1750563979252,0.7507,2266.4,2266.3,2.64748709]
[1750563979448,0.7507,2266.4,2266.1,4.62363186]
[1750563979948,0.7507,2266.4,2266.1,2.64766201]
[1750563980509,0.55,2266.3,2266.0,1.976]
[1750563980709,0.7507,2266.2,2265.9,2.64787119]
[1750563980946,0.7507,2266.2,2265.9,4.62395121]
[1750563981248,0.32245989,2266.5,2266.3,2.64748709]
[1750563981551,0.8034,2266.4,2266.3,2.64748709]
[1750563984732,0.8034,2266.4,2266.2,2.64754564]
[1750563985065,0.8034,2266.4,2266.2,1.976]
[1750563985449,0.8034,2266.4,2266.2,2.64759531]
[1750563985658,0.8034,2266.4,2266.1,4.62366544]
[1750563985859,2.18070039,2266.4,2266.1,4.62366544]
[1750563986058,0.756,2266.3,2266.1,4.62366544]
[1750563986477,0.756,2266.3,2266.2,2.64760391]
[1750563986685,0.756,2266.3,2266.1,4.62365062]
[1750563987073,0.756,2266.3,2266.2,2.64760391]
[1750563987790,0.756,2266.3,2266.1,1.976]
[1750563987791,0.756,2266.2,2266.1,4.62369866]
[1750563988099,0.756,2266.2,2266.0,2.64783355]
[1750563988248,0.756,2266.2,2266.0,2.64783759]
[1750563989768,0.756,2266.2,2265.9,4.62391024]
[1750563989969,10.0,2266.1,2266.0,2.64781736]
[1750563990276,10.756,2266.1,2266.0,2.64781736]
[1750563991350,10.756,2266.1,2265.4,1.972]
[1750563991351,0.7685,2266.0,2265.4,6.632]
[1750563991675,0.7685,2266.0,2265.7,2.6481318]
[1750563991986,0.7685,2265.8,2265.6,2.64824252]
[1750563992485,0.7685,2265.7,2265.4,4.62048423]
[1750563992651,0.7685,2265.5,2264.7,13.24831318]
[1750563992850,0.7685,2265.5,2265.1,2.64881477]
[1750563993610,0.7685,2265.5,2265.1,2.64888967]
[1750563993997,0.7685,2265.5,2265.3,2.64864951]
[1750563994301,0.7685,2265.5,2265.3,2.64855465]
[1750563994604,2.691535,2265.5,2265.3,2.64855465]
[1750563994791,0.7685,2265.4,2265.2,2.64874275]
[1750563994983,10.7685,2265.2,2265.0,4.62094802]
[1750563995185,10.7685,2265.2,2264.3,2.64977037]
[1750563995186,0.7685,2265.0,2264.3,2.64977037]
[1750563995385,0.7685,2265.0,2264.9,2.64912358]
[1750563995586,10.7685,2265.0,2264.9,2.64912358]
[1750563996086,0.7685,2265.0,2264.9,2.64912358]
[1750563996288,10.7685,2265.0,2264.9,2.64912358]
[1750563997863,0.7685,2265.0,2264.9,2.64912358]
[1750563998260,0.23049103,2265.2,2265.1,2.64888967]
[1750563998508,8.1616,2265.3,2265.2,2.64877273]
[1750563998800,10.7756,2265.3,2265.2,2.64877273]
[1750563999104,0.23047125,2265.5,2265.4,2.64853888]
[1750563999308,0.44873663,2265.7,2265.4,2.64842226]
[1750563999600,0.7804424,2265.7,2265.3,4.62160704]
[1750563999807,0.7756,2265.6,2265.3,2.64860704]
[1750564000004,10.7756,2265.4,2265.3,2.64860704]
[1750564000203,0.7756,2265.4,2265.3,2.64860704]
[1750564000503,10.7756,2265.4,2265.3,2.64860704]
[1750564000803,0.7756,2265.4,2265.3,2.64860704]
[1750564000980,10.0,2265.5,2265.4,2.64853888]
[1750564002302,10.7707,2265.6,2265.4,2.64853888]
[1750564002674,10.7707,2265.6,2265.5,2.64842198]
[1750564002982,10.7707,2265.6,2265.4,2.64847776]
[1750564003183,8.1557,2265.6,2265.4,2.64847776]
[1750564003382,8.1557,2265.6,2265.5,2.64842198]
[1750564003805,0.7707,2265.6,2265.4,2.64848424]
[1750564004010,8.1557,2265.6,2265.3,2.64860258]
[1750564004515,0.7707,2265.5,2265.1,2.64882404]
[1750564004715,0.55,2265.4,2265.0,4.62194863]
[1750564004916,0.7707,2265.1,2265.0,1.973]
[1750564005274,0.7707,2265.1,2265.0,4.62200662]
[1750564006607,18.1557,2265.1,2265.0,4.62200662]
[1750564006775,10.0,2265.1,2265.0,4.62200662]
[1750564009026,0.7505,2265.3,2265.1,2.64888967]
[1750564009335,10.0,2265.2,2265.1,2.64883374]
[1750564009498,8.1355,2265.3,2265.0,4.6219504]
[1750564009823,0.7505,2265.0,2264.8,1.973]
[1750564010028,10.0,2264.9,2264.7,1.973]
[1750564010191,0.7505,2264.8,2264.7,1.973]
[1750564011091,0.7505,2264.8,2264.7,4.62235753]
[1750564011618,0.7505,2264.8,2264.7,1.973]
[1750564011823,12.56405,2264.8,2264.7,1.973]
[1750564012323,12.56405,2264.8,2264.7,4.62235753]
[1750564012523,10.7505,2264.8,2264.7,4.62235753]
[1750564013595,10.0,2264.8,2264.7,4.62235753]
[1750564013824,17.385,2264.8,2264.7,4.62235753]
[1750564014614,10.0,2264.8,2264.7,4.62235753]
[1750564015920,0.8013,2265.2,2265.0,2.64900662]